[Event "Titled Tuesday Blitz August 31 2021"]
[White "Khoroshev, Nikita"]
[Black "Guliev, Logman"]
[WhiteFideId "14200287"]
[BlackFideId "13400061"]
[WhiteElo "2328"]
[BlackElo "2128"]
[Result "1-0"]
[Round "05"]
[TimeControl "180+1"]
[Date "2021.08.31"]
[WhiteClock "0:00:11"]
[BlackClock "0:00:01"]

1. Nf3 {[%clk 0:03:00]}  c5 {[%clk 0:02:59]} 2. g3 {[%clk 0:02:59]}  Nc6 {[%clk 0:02:57]} 3. Bg2 {[%clk 0:02:59]}  g6 {[%clk 0:02:58]} 4. O-O {[%clk 0:02:57]}  Bg7 {[%clk 0:02:59]} 5. c3 {[%clk 0:02:51]}  d5 {[%clk 0:02:58]} 6. d4 {[%clk 0:02:49]}  cxd4 {[%clk 0:02:58]} 7. cxd4 {[%clk 0:02:50]}  Nf6 {[%clk 0:02:57]} 8. Ne5 {[%clk 0:02:50]}  O-O {[%clk 0:02:58]} 9. Nxc6 {[%clk 0:02:48]}  bxc6 {[%clk 0:02:57]} 10. Nc3 {[%clk 0:02:49]}  Ba6 {[%clk 0:02:51]} 11. b3 {[%clk 0:02:43]}  c5 {[%clk 0:02:38]} 12. Bg5 {[%clk 0:02:17]}  cxd4 {[%clk 0:02:34]} 13. Bxf6 {[%clk 0:02:17]}  Bxf6 {[%clk 0:02:19]} 14. Nxd5 {[%clk 0:02:16]}  Bg7 {[%clk 0:02:18]} 15. Rc1 {[%clk 0:02:14]}  Rc8 {[%clk 0:02:08]} 16. Qd2 {[%clk 0:02:05]}  e5 {[%clk 0:02:01]} 17. Qb4 {[%clk 0:01:43]}  Rxc1 {[%clk 0:01:55]} 18. Rxc1 {[%clk 0:01:42]}  Bxe2 {[%clk 0:01:49]} 19. Ne7+ {[%clk 0:01:25]}  Kh8 {[%clk 0:01:47]} 20. Rc8 {[%clk 0:01:24]}  Qxc8 {[%clk 0:01:06]} 21. Nxc8 {[%clk 0:01:25]}  Rxc8 {[%clk 0:01:07]} 22. h4 {[%clk 0:01:23]}  d3 {[%clk 0:01:05]} 23. Qd6 {[%clk 0:01:08]}  f5 {[%clk 0:00:58]} 24. Bb7 {[%clk 0:00:50]}  Rf8 {[%clk 0:00:55]} 25. Ba6 {[%clk 0:00:45]}  e4 {[%clk 0:00:54]} 26. Bc4 {[%clk 0:00:40]}  Bf3 {[%clk 0:00:46]} 27. a4 {[%clk 0:00:34]}  a5 {[%clk 0:00:45]} 28. Qd5 {[%clk 0:00:24]}  Bc3 {[%clk 0:00:40]} 29. Qc5 {[%clk 0:00:20]}  Rd8 {[%clk 0:00:36]} 30. Qe7 {[%clk 0:00:20]}  Rb8 {[%clk 0:00:30]} 31. Qc7 {[%clk 0:00:19]}  Rf8 {[%clk 0:00:28]} 32. Bxd3 {[%clk 0:00:18]}  exd3 {[%clk 0:00:15]} 33. Qxc3+ {[%clk 0:00:17]}  Kg8 {[%clk 0:00:14]} 34. Qxd3 {[%clk 0:00:17]}  Be4 {[%clk 0:00:14]} 35. Qb5 {[%clk 0:00:17]}  Rd8 {[%clk 0:00:12]} 36. f3 {[%clk 0:00:15]}  Bxf3 {[%clk 0:00:09]} 37. Qxa5 {[%clk 0:00:15]}  Rd1+ {[%clk 0:00:05]} 38. Kf2 {[%clk 0:00:15]}  Bg4 {[%clk 0:00:06]} 39. Qc3 {[%clk 0:00:12]}  Rb1 {[%clk 0:00:03]} 40. a5 {[%clk 0:00:12]}  f4 {[%clk 0:00:01]} 41. gxf4 {[%clk 0:00:11]} 1-0


[Site "https://www.chess.com"]

[Event "Titled Tuesday Blitz August 31 2021"]
[White "Kozak, Antoni"]
[Black "Maksimovic, Bojan"]
[WhiteFideId "21832030"]
[BlackFideId "14408120"]
[WhiteElo "2289"]
[BlackElo "2439"]
[Result "1-0"]
[Round "05"]
[TimeControl "180+1"]
[Date "2021.08.31"]
[WhiteClock "0:00:19"]
[BlackClock "0:00:02"]

1. d4 {[%clk 0:02:53]}  Nf6 {[%clk 0:02:53]} 2. Bf4 {[%clk 0:02:53]}  d6 {[%clk 0:02:51]} 3. e3 {[%clk 0:02:51]}  Nbd7 {[%clk 0:02:51]} 4. h3 {[%clk 0:02:49]}  e5 {[%clk 0:02:50]} 5. Bh2 {[%clk 0:02:49]}  g6 {[%clk 0:02:33]} 6. c4 {[%clk 0:02:48]}  Bg7 {[%clk 0:02:33]} 7. Nc3 {[%clk 0:02:48]}  O-O {[%clk 0:02:32]} 8. Nf3 {[%clk 0:02:48]}  exd4 {[%clk 0:02:26]} 9. exd4 {[%clk 0:02:47]}  Re8+ {[%clk 0:02:26]} 10. Be2 {[%clk 0:02:47]}  Ne4 {[%clk 0:02:17]} 11. Nxe4 {[%clk 0:02:36]}  Rxe4 {[%clk 0:02:18]} 12. O-O {[%clk 0:02:36]}  Nf6 {[%clk 0:02:18]} 13. Bd3 {[%clk 0:02:32]}  Re8 {[%clk 0:02:16]} 14. Qc2 {[%clk 0:02:29]}  Bd7 {[%clk 0:02:07]} 15. Rfe1 {[%clk 0:02:26]}  Rxe1+ {[%clk 0:02:05]} 16. Rxe1 {[%clk 0:02:25]}  Qf8 {[%clk 0:02:06]} 17. b4 {[%clk 0:02:17]}  Re8 {[%clk 0:02:04]} 18. Qd2 {[%clk 0:02:12]}  Rxe1+ {[%clk 0:01:58]} 19. Qxe1 {[%clk 0:02:11]}  Qe8 {[%clk 0:01:58]} 20. Kf1 {[%clk 0:02:11]}  Kf8 {[%clk 0:01:55]} 21. Qxe8+ {[%clk 0:01:59]}  Bxe8 {[%clk 0:01:52]} 22. b5 {[%clk 0:01:59]}  Ke7 {[%clk 0:01:50]} 23. a4 {[%clk 0:01:58]}  b6 {[%clk 0:01:25]} 24. Ke2 {[%clk 0:01:53]}  Bd7 {[%clk 0:01:22]} 25. Bf4 {[%clk 0:01:49]}  h6 {[%clk 0:01:23]} 26. Bd2 {[%clk 0:01:44]}  Bc8 {[%clk 0:01:20]} 27. a5 {[%clk 0:01:42]}  Bb7 {[%clk 0:01:07]} 28. a6 {[%clk 0:01:42]}  Bc8 {[%clk 0:01:05]} 29. Be3 {[%clk 0:01:25]}  Be6 {[%clk 0:01:02]} 30. Ne1 {[%clk 0:01:10]}  Ne8 {[%clk 0:00:39]} 31. Nc2 {[%clk 0:01:04]}  Bd7 {[%clk 0:00:37]} 32. Nb4 {[%clk 0:01:01]}  Nf6 {[%clk 0:00:36]} 33. f3 {[%clk 0:00:59]}  Kd8 {[%clk 0:00:32]} 34. Be4 {[%clk 0:00:56]}  Nh5 {[%clk 0:00:21]} 35. g4 {[%clk 0:00:51]}  Nf6 {[%clk 0:00:20]} 36. Bc6 {[%clk 0:00:47]}  Be6 {[%clk 0:00:17]} 37. Kd3 {[%clk 0:00:47]}  Bc8 {[%clk 0:00:15]} 38. Bd5 {[%clk 0:00:39]}  Nxd5 {[%clk 0:00:13]} 39. cxd5 {[%clk 0:00:39]}  Bd7 {[%clk 0:00:12]} 40. Kc4 {[%clk 0:00:40]}  h5 {[%clk 0:00:10]} 41. Nc6+ {[%clk 0:00:35]}  Bxc6 {[%clk 0:00:10]} 42. dxc6 {[%clk 0:00:36]}  hxg4 {[%clk 0:00:08]} 43. fxg4 {[%clk 0:00:34]}  Ke7 {[%clk 0:00:07]} 44. Kd5 {[%clk 0:00:33]}  Bf6 {[%clk 0:00:08]} 45. Bf2 {[%clk 0:00:22]}  Bg5 {[%clk 0:00:08]} 46. h4 {[%clk 0:00:22]}  Bd2 {[%clk 0:00:08]} 47. h5 {[%clk 0:00:22]}  Bg5 {[%clk 0:00:08]} 48. Bg3 {[%clk 0:00:19]}  Bc1 {[%clk 0:00:04]} 49. Bh4+ {[%clk 0:00:19]}  Ke8 {[%clk 0:00:02]} 50. Bf6 {[%clk 0:00:19]} 1-0


[Site "https://www.chess.com"]

[Event "Titled Tuesday Blitz August 31 2021"]
[White "Kucuksari, Kaan"]
[Black "Nazaretyan, Tigran"]
[WhiteFideId "6380166"]
[BlackFideId "24162345"]
[WhiteElo "2300"]
[BlackElo "2167"]
[Result "1/2-1/2"]
[Round "05"]
[TimeControl "180+1"]
[Date "2021.08.31"]
[WhiteClock "0:00:15"]
[BlackClock "0:00:08"]

1. d4 {[%clk 0:02:57]}  Nf6 {[%clk 0:02:59]} 2. c4 {[%clk 0:02:57]}  c5 {[%clk 0:02:58]} 3. d5 {[%clk 0:02:57]}  b5 {[%clk 0:02:57]} 4. cxb5 {[%clk 0:02:58]}  a6 {[%clk 0:02:57]} 5. bxa6 {[%clk 0:02:59]}  Bxa6 {[%clk 0:02:57]} 6. Nc3 {[%clk 0:03:00]}  g6 {[%clk 0:02:56]} 7. e4 {[%clk 0:02:59]}  Bxf1 {[%clk 0:02:56]} 8. Kxf1 {[%clk 0:02:59]}  d6 {[%clk 0:02:55]} 9. g3 {[%clk 0:02:58]}  Bg7 {[%clk 0:02:55]} 10. Kg2 {[%clk 0:02:59]}  O-O {[%clk 0:02:56]} 11. Nf3 {[%clk 0:03:00]}  Nbd7 {[%clk 0:02:55]} 12. a4 {[%clk 0:02:59]}  Qa5 {[%clk 0:02:54]} 13. Qe2 {[%clk 0:02:55]}  Rfb8 {[%clk 0:02:53]} 14. Bd2 {[%clk 0:02:42]}  Rxb2 {[%clk 0:02:47]} 15. Nd1 {[%clk 0:02:42]}  Rxd2 {[%clk 0:02:18]} 16. Nxd2 {[%clk 0:02:41]}  Nxe4 {[%clk 0:02:05]} 17. Nc4 {[%clk 0:02:34]}  Qb4 {[%clk 0:01:56]} 18. Ra2 {[%clk 0:02:28]}  Ndf6 {[%clk 0:01:49]} 19. a5 {[%clk 0:02:25]}  h5 {[%clk 0:01:06]} 20. h4 {[%clk 0:02:13]}  Ra7 {[%clk 0:00:55]} 21. Rb2 {[%clk 0:01:52]}  Qa4 {[%clk 0:00:34]} 22. Rb8+ {[%clk 0:01:52]}  Kh7 {[%clk 0:00:33]} 23. Nde3 {[%clk 0:01:42]}  Nc3 {[%clk 0:00:32]} 24. Qd3 {[%clk 0:01:40]}  Nd7 {[%clk 0:00:28]} 25. g4 {[%clk 0:01:35]}  Nxb8 {[%clk 0:00:27]} 26. gxh5 {[%clk 0:01:34]}  Nd7 {[%clk 0:00:25]} 27. hxg6+ {[%clk 0:01:34]}  fxg6 {[%clk 0:00:24]} 28. h5 {[%clk 0:01:34]}  Nf6 {[%clk 0:00:21]} 29. Qxg6+ {[%clk 0:01:33]}  Kh8 {[%clk 0:00:19]} 30. Rh4 {[%clk 0:00:58]}  Qe8 {[%clk 0:00:19]} 31. Qg5 {[%clk 0:00:48]}  Nce4 {[%clk 0:00:18]} 32. Qf5 {[%clk 0:00:46]}  Qd7 {[%clk 0:00:17]} 33. h6 {[%clk 0:00:42]}  Bf8 {[%clk 0:00:16]} 34. Qg6 {[%clk 0:00:39]}  Qe8 {[%clk 0:00:14]} 35. Qxe8 {[%clk 0:00:38]}  Nxe8 {[%clk 0:00:14]} 36. Rxe4 {[%clk 0:00:39]}  Nf6 {[%clk 0:00:14]} 37. Re6 {[%clk 0:00:30]}  Bxh6 {[%clk 0:00:13]} 38. Nf5 {[%clk 0:00:28]}  Bf8 {[%clk 0:00:13]} 39. Nfxd6 {[%clk 0:00:25]}  Nxd5 {[%clk 0:00:12]} 40. Nc8 {[%clk 0:00:20]}  Nf4+ {[%clk 0:00:10]} 41. Kf3 {[%clk 0:00:20]}  Nxe6 {[%clk 0:00:09]} 42. Nxa7 {[%clk 0:00:21]}  Nc7 {[%clk 0:00:09]} 43. Nc6 {[%clk 0:00:18]}  Kg7 {[%clk 0:00:08]} 44. Nb8 {[%clk 0:00:18]}  Kf7 {[%clk 0:00:07]} 45. a6 {[%clk 0:00:19]}  Nb5 {[%clk 0:00:08]} 46. Nc6 {[%clk 0:00:19]}  Ke6 {[%clk 0:00:07]} 47. a7 {[%clk 0:00:13]}  Nc7 {[%clk 0:00:06]} 48. Ke4 {[%clk 0:00:09]}  Kd7 {[%clk 0:00:06]} 49. N4e5+ {[%clk 0:00:07]}  Kd6 {[%clk 0:00:05]} 50. Nb8 {[%clk 0:00:05]}  Bg7 {[%clk 0:00:05]} 51. Nc4+ {[%clk 0:00:06]}  Ke6 {[%clk 0:00:04]} 52. Nb6 {[%clk 0:00:07]}  Bd4 {[%clk 0:00:04]} 53. a8=Q {[%clk 0:00:06]}  Nxa8 {[%clk 0:00:03]} 54. Nxa8 {[%clk 0:00:07]}  Bxf2 {[%clk 0:00:04]} 55. Nc7+ {[%clk 0:00:07]}  Kd6 {[%clk 0:00:04]} 56. Nd5 {[%clk 0:00:08]}  e6 {[%clk 0:00:03]} 57. Nc3 {[%clk 0:00:09]}  Bd4 {[%clk 0:00:03]} 58. Na6 {[%clk 0:00:09]}  Bxc3 {[%clk 0:00:03]} 59. Nb8 {[%clk 0:00:10]}  Bd4 {[%clk 0:00:03]} 60. Na6 {[%clk 0:00:11]}  Kc6 {[%clk 0:00:04]} 61. Nb8+ {[%clk 0:00:11]}  Kb5 {[%clk 0:00:04]} 62. Nd7 {[%clk 0:00:11]}  Bg7 {[%clk 0:00:04]} 63. Kd3 {[%clk 0:00:10]}  c4+ {[%clk 0:00:04]} 64. Kc2 {[%clk 0:00:09]}  Kc6 {[%clk 0:00:05]} 65. Nb8+ {[%clk 0:00:10]}  Kc7 {[%clk 0:00:05]} 66. Na6+ {[%clk 0:00:10]}  Kb6 {[%clk 0:00:06]} 67. Nb4 {[%clk 0:00:11]}  Kb5 {[%clk 0:00:06]} 68. Na2 {[%clk 0:00:12]}  e5 {[%clk 0:00:06]} 69. Nc3+ {[%clk 0:00:12]}  Kc5 {[%clk 0:00:07]} 70. Ne2 {[%clk 0:00:13]}  Kd5 {[%clk 0:00:07]} 71. Kd2 {[%clk 0:00:13]}  e4 {[%clk 0:00:07]} 72. Ke3 {[%clk 0:00:13]}  Bh6+ {[%clk 0:00:08]} 73. Kf2 {[%clk 0:00:14]}  e3+ {[%clk 0:00:07]} 74. Kf3 {[%clk 0:00:14]}  Kc5 {[%clk 0:00:08]} 75. Ke4 {[%clk 0:00:15]}  Kb4 {[%clk 0:00:08]} 76. Kd4 {[%clk 0:00:15]}  c3 {[%clk 0:00:08]} 77. Nxc3 {[%clk 0:00:14]}  Bg7+ {[%clk 0:00:08]} 78. Kxe3 {[%clk 0:00:15]} 1/2-1/2


[Site "https://www.chess.com"]

[Event "Titled Tuesday Blitz August 31 2021"]
[White "Liyanage, Ranindu Dilshan"]
[Black "Eswaran, Ashritha"]
[WhiteFideId "9915834"]
[BlackFideId "2080788"]
[WhiteElo "1839"]
[BlackElo "2430"]
[Result "0-1"]
[Round "05"]
[TimeControl "180+1"]
[Date "2021.08.31"]
[WhiteClock "0:00:06"]
[BlackClock "0:00:39"]

1. e4 {[%clk 0:03:00]}  c5 {[%clk 0:02:59]} 2. Nf3 {[%clk 0:03:00]}  d6 {[%clk 0:03:00]} 3. d4 {[%clk 0:03:01]}  cxd4 {[%clk 0:03:01]} 4. Nxd4 {[%clk 0:03:01]}  Nf6 {[%clk 0:03:01]} 5. Nc3 {[%clk 0:03:02]}  g6 {[%clk 0:03:02]} 6. h3 {[%clk 0:03:01]}  Bg7 {[%clk 0:03:02]} 7. g4 {[%clk 0:03:01]}  b6 {[%clk 0:02:57]} 8. Bg2 {[%clk 0:02:55]}  Bb7 {[%clk 0:02:57]} 9. Be3 {[%clk 0:02:52]}  O-O {[%clk 0:02:56]} 10. O-O {[%clk 0:02:52]}  Nfd7 {[%clk 0:02:54]} 11. Nd5 {[%clk 0:02:47]}  Nc6 {[%clk 0:02:50]} 12. c4 {[%clk 0:02:39]}  Nde5 {[%clk 0:02:41]} 13. b3 {[%clk 0:02:36]}  e6 {[%clk 0:02:33]} 14. Nc3 {[%clk 0:02:33]}  Nxd4 {[%clk 0:02:22]} 15. Bxd4 {[%clk 0:02:33]}  g5 {[%clk 0:02:21]} 16. Qd2 {[%clk 0:02:28]}  f5 {[%clk 0:02:12]} 17. exf5 {[%clk 0:02:19]}  Bxg2 {[%clk 0:02:09]} 18. Kxg2 {[%clk 0:02:20]}  exf5 {[%clk 0:02:09]} 19. f4 {[%clk 0:02:14]}  gxf4 {[%clk 0:02:04]} 20. Rxf4 {[%clk 0:02:12]}  fxg4 {[%clk 0:02:04]} 21. Raf1 {[%clk 0:02:04]}  gxh3+ {[%clk 0:02:01]} 22. Kxh3 {[%clk 0:02:05]}  Qd7+ {[%clk 0:01:57]} 23. Kg3 {[%clk 0:02:05]}  Rxf4 {[%clk 0:01:53]} 24. Rxf4 {[%clk 0:02:01]}  Qe6 {[%clk 0:01:32]} 25. Nd5 {[%clk 0:01:54]}  Re8 {[%clk 0:01:26]} 26. Qf2 {[%clk 0:01:37]}  Nd3 {[%clk 0:01:17]} 27. Qf3 {[%clk 0:01:01]}  Nxf4 {[%clk 0:01:15]} 28. Nxf4 {[%clk 0:01:02]}  Qe4 {[%clk 0:01:12]} 29. Qh5 {[%clk 0:00:33]}  Rf8 {[%clk 0:00:46]} 30. Qg5 {[%clk 0:00:08]}  Qxd4 {[%clk 0:00:40]} 31. Ne6 {[%clk 0:00:06]}  Qe5+ {[%clk 0:00:39]} 0-1


[Site "https://www.chess.com"]

[Event "Titled Tuesday Blitz August 31 2021"]
[White "Martin Duque, Jesus"]
[Black "Moroni, Luca Jr"]
[WhiteFideId "2208954"]
[BlackFideId "865834"]
[WhiteElo "2224"]
[BlackElo "2491"]
[Result "1/2-1/2"]
[Round "05"]
[TimeControl "180+1"]
[Date "2021.08.31"]
[WhiteClock "0:00:11"]
[BlackClock "0:00:13"]

1. Nf3 {[%clk 0:02:58]}  g6 {[%clk 0:03:00]} 2. d4 {[%clk 0:02:57]}  Bg7 {[%clk 0:03:01]} 3. e3 {[%clk 0:02:58]}  d6 {[%clk 0:03:01]} 4. Be2 {[%clk 0:02:58]}  b6 {[%clk 0:03:02]} 5. O-O {[%clk 0:02:58]}  Bb7 {[%clk 0:03:02]} 6. b3 {[%clk 0:02:58]}  Nd7 {[%clk 0:03:02]} 7. Bb2 {[%clk 0:02:59]}  Ngf6 {[%clk 0:02:59]} 8. c4 {[%clk 0:02:58]}  O-O {[%clk 0:03:00]} 9. Nc3 {[%clk 0:02:58]}  e5 {[%clk 0:02:56]} 10. dxe5 {[%clk 0:02:42]}  Nxe5 {[%clk 0:02:57]} 11. Nxe5 {[%clk 0:02:40]}  dxe5 {[%clk 0:02:58]} 12. Qxd8 {[%clk 0:02:40]}  Rfxd8 {[%clk 0:02:58]} 13. Rfd1 {[%clk 0:02:41]}  a6 {[%clk 0:02:52]} 14. f3 {[%clk 0:02:34]}  Kf8 {[%clk 0:02:22]} 15. Kf2 {[%clk 0:02:28]}  Ke8 {[%clk 0:02:22]} 16. h3 {[%clk 0:02:15]}  Rxd1 {[%clk 0:02:17]} 17. Rxd1 {[%clk 0:02:14]}  Rd8 {[%clk 0:02:16]} 18. Rxd8+ {[%clk 0:02:12]}  Kxd8 {[%clk 0:02:17]} 19. g4 {[%clk 0:02:13]}  h5 {[%clk 0:02:02]} 20. g5 {[%clk 0:01:54]}  Nd7 {[%clk 0:02:02]} 21. h4 {[%clk 0:01:53]}  Bf8 {[%clk 0:02:02]} 22. Nd5 {[%clk 0:01:44]}  a5 {[%clk 0:02:01]} 23. Bd3 {[%clk 0:01:33]}  Bd6 {[%clk 0:01:37]} 24. Ke2 {[%clk 0:01:31]}  Nc5 {[%clk 0:01:33]} 25. Bc2 {[%clk 0:01:30]}  Ba6 {[%clk 0:01:25]} 26. Kd2 {[%clk 0:01:10]}  Bc8 {[%clk 0:01:20]} 27. Nc3 {[%clk 0:00:52]}  Bb7 {[%clk 0:01:17]} 28. Ke2 {[%clk 0:00:50]}  Kd7 {[%clk 0:01:11]} 29. Nb5 {[%clk 0:00:50]}  Ke6 {[%clk 0:01:07]} 30. Nxd6 {[%clk 0:00:50]}  cxd6 {[%clk 0:01:08]} 31. e4 {[%clk 0:00:45]}  Ba6 {[%clk 0:00:53]} 32. Ke3 {[%clk 0:00:44]}  Kd7 {[%clk 0:00:52]} 33. f4 {[%clk 0:00:43]}  exf4+ {[%clk 0:00:50]} 34. Kxf4 {[%clk 0:00:44]}  Ne6+ {[%clk 0:00:44]} 35. Ke3 {[%clk 0:00:44]}  Bb7 {[%clk 0:00:43]} 36. e5 {[%clk 0:00:42]}  d5 {[%clk 0:00:41]} 37. Bd3 {[%clk 0:00:33]}  Bc6 {[%clk 0:00:37]} 38. Bd4 {[%clk 0:00:31]}  Kc7 {[%clk 0:00:32]} 39. a3 {[%clk 0:00:19]}  Kb7 {[%clk 0:00:32]} 40. b4 {[%clk 0:00:20]}  axb4 {[%clk 0:00:31]} 41. axb4 {[%clk 0:00:20]}  dxc4 {[%clk 0:00:31]} 42. Bxc4 {[%clk 0:00:21]}  b5 {[%clk 0:00:31]} 43. Bb3 {[%clk 0:00:18]}  Kc7 {[%clk 0:00:31]} 44. Bc5 {[%clk 0:00:17]}  Kd7 {[%clk 0:00:24]} 45. Bd6 {[%clk 0:00:17]}  Ke8 {[%clk 0:00:24]} 46. Bc2 {[%clk 0:00:15]}  Ng7 {[%clk 0:00:18]} 47. Bd3 {[%clk 0:00:15]}  Kd7 {[%clk 0:00:17]} 48. Kd4 {[%clk 0:00:12]}  Ne6+ {[%clk 0:00:16]} 49. Ke3 {[%clk 0:00:12]}  Ke8 {[%clk 0:00:16]} 50. Be2 {[%clk 0:00:12]}  Ng7 {[%clk 0:00:15]} 51. Bd3 {[%clk 0:00:11]}  Bd7 {[%clk 0:00:11]} 52. Be2 {[%clk 0:00:11]}  Nf5+ {[%clk 0:00:11]} 53. Kf4 {[%clk 0:00:10]}  Nxh4 {[%clk 0:00:10]} 54. Bd3 {[%clk 0:00:10]}  Nf5 {[%clk 0:00:08]} 55. Bxf5 {[%clk 0:00:10]}  Bxf5 {[%clk 0:00:09]} 56. Kg3 {[%clk 0:00:08]}  Kd7 {[%clk 0:00:09]} 57. Kh4 {[%clk 0:00:08]}  Ke6 {[%clk 0:00:10]} 58. Bb8 {[%clk 0:00:08]}  Kd5 {[%clk 0:00:10]} 59. Bd6 {[%clk 0:00:08]}  Kc4 {[%clk 0:00:11]} 60. Be7 {[%clk 0:00:08]}  Kd3 {[%clk 0:00:10]} 61. Bd6 {[%clk 0:00:08]}  Kd4 {[%clk 0:00:11]} 62. Bc7 {[%clk 0:00:08]}  Be6 {[%clk 0:00:09]} 63. Bd6 {[%clk 0:00:09]}  Kc4 {[%clk 0:00:08]} 64. Be7 {[%clk 0:00:09]}  Kb3 {[%clk 0:00:09]} 65. Bd6 {[%clk 0:00:09]}  Ka3 {[%clk 0:00:09]} 66. Be7 {[%clk 0:00:09]}  Ka4 {[%clk 0:00:10]} 67. Bd6 {[%clk 0:00:10]}  Kb3 {[%clk 0:00:10]} 68. Be7 {[%clk 0:00:10]}  Ka4 {[%clk 0:00:11]} 69. Bd6 {[%clk 0:00:11]}  Kb3 {[%clk 0:00:12]} 70. Be7 {[%clk 0:00:11]}  Ka4 {[%clk 0:00:13]} 1/2-1/2


[Site "https://www.chess.com"]

[Event "Titled Tuesday Blitz August 31 2021"]
[White "Mikhailovsky, Vladimir"]
[Black "Visakh N R"]
[WhiteFideId "34105414"]
[BlackFideId "25012223"]
[WhiteElo "2315"]
[BlackElo "2428"]
[Result "1-0"]
[Round "05"]
[TimeControl "180+1"]
[Date "2021.08.31"]
[WhiteClock "0:00:08"]
[BlackClock "0:00:04"]

1. e4 {[%clk 0:03:00]}  e5 {[%clk 0:02:55]} 2. Nf3 {[%clk 0:03:01]}  Nc6 {[%clk 0:02:54]} 3. Nc3 {[%clk 0:03:01]}  Nf6 {[%clk 0:02:48]} 4. d4 {[%clk 0:03:02]}  exd4 {[%clk 0:02:48]} 5. Nxd4 {[%clk 0:03:03]}  Bb4 {[%clk 0:02:34]} 6. Nxc6 {[%clk 0:03:03]}  bxc6 {[%clk 0:02:34]} 7. Bd3 {[%clk 0:03:03]}  O-O {[%clk 0:02:34]} 8. O-O {[%clk 0:03:04]}  Re8 {[%clk 0:02:33]} 9. Bg5 {[%clk 0:03:03]}  h6 {[%clk 0:02:29]} 10. Bh4 {[%clk 0:03:02]}  Rb8 {[%clk 0:02:24]} 11. Re1 {[%clk 0:02:34]}  Be7 {[%clk 0:02:16]} 12. e5 {[%clk 0:02:27]}  Nd5 {[%clk 0:02:14]} 13. Bxe7 {[%clk 0:02:26]}  Qxe7 {[%clk 0:02:14]} 14. Nxd5 {[%clk 0:02:25]}  cxd5 {[%clk 0:02:13]} 15. b3 {[%clk 0:02:25]}  Bb7 {[%clk 0:02:05]} 16. Qg4 {[%clk 0:02:18]}  c5 {[%clk 0:01:49]} 17. Re3 {[%clk 0:01:56]}  d4 {[%clk 0:01:47]} 18. Re2 {[%clk 0:01:48]}  Qe6 {[%clk 0:01:39]} 19. Bf5 {[%clk 0:01:36]}  Qd5 {[%clk 0:01:38]} 20. Be4 {[%clk 0:01:24]}  Qe6 {[%clk 0:01:26]} 21. Bf5 {[%clk 0:01:23]}  Qd5 {[%clk 0:01:15]} 22. Rae1 {[%clk 0:01:21]}  Re7 {[%clk 0:01:07]} 23. Be4 {[%clk 0:01:14]}  Qe6 {[%clk 0:01:06]} 24. Bf5 {[%clk 0:01:14]}  Qd5 {[%clk 0:01:06]} 25. h3 {[%clk 0:01:06]}  Qc6 {[%clk 0:00:50]} 26. Bd3 {[%clk 0:00:59]}  Rbe8 {[%clk 0:00:48]} 27. f4 {[%clk 0:00:54]}  Ba6 {[%clk 0:00:48]} 28. f5 {[%clk 0:00:39]}  f6 {[%clk 0:00:34]} 29. exf6 {[%clk 0:00:18]}  Qxf6 {[%clk 0:00:23]} 30. Rxe7 {[%clk 0:00:18]}  Rxe7 {[%clk 0:00:23]} 31. Rxe7 {[%clk 0:00:18]}  Bxd3 {[%clk 0:00:23]} 32. Rxg7+ {[%clk 0:00:06]}  Qxg7 {[%clk 0:00:23]} 33. Qxg7+ {[%clk 0:00:07]}  Kxg7 {[%clk 0:00:23]} 34. cxd3 {[%clk 0:00:08]}  Kf6 {[%clk 0:00:18]} 35. g4 {[%clk 0:00:08]}  Kg5 {[%clk 0:00:14]} 36. Kf2 {[%clk 0:00:08]}  h5 {[%clk 0:00:14]} 37. Kg3 {[%clk 0:00:08]}  d5 {[%clk 0:00:12]} 38. a3 {[%clk 0:00:06]}  a6 {[%clk 0:00:04]} 39. h4+ {[%clk 0:00:04]}  Kf6 {[%clk 0:00:04]} 40. a4 {[%clk 0:00:04]}  Ke5 {[%clk 0:00:02]} 41. gxh5 {[%clk 0:00:03]}  Kxf5 {[%clk 0:00:02]} 42. h6 {[%clk 0:00:03]}  Kg6 {[%clk 0:00:02]} 43. Kf4 {[%clk 0:00:03]}  Kxh6 {[%clk 0:00:02]} 44. Ke5 {[%clk 0:00:03]}  c4 {[%clk 0:00:02]} 45. Kxd4 {[%clk 0:00:03]}  cxb3 {[%clk 0:00:02]} 46. Kc3 {[%clk 0:00:03]}  Kh5 {[%clk 0:00:02]} 47. Kxb3 {[%clk 0:00:04]}  Kxh4 {[%clk 0:00:03]} 48. Kc3 {[%clk 0:00:05]}  Kg4 {[%clk 0:00:03]} 49. Kd4 {[%clk 0:00:06]}  Kf3 {[%clk 0:00:03]} 50. Kxd5 {[%clk 0:00:06]}  Ke3 {[%clk 0:00:04]} 51. d4 {[%clk 0:00:07]}  Kd3 {[%clk 0:00:04]} 52. Kc5 {[%clk 0:00:08]} 1-0


[Site "https://www.chess.com"]

[Event "Titled Tuesday Blitz August 31 2021"]
[White "Mikhalsky, Vladimir"]
[Black "Siva Mahadevan"]
[WhiteFideId "14144352"]
[BlackFideId "25043153"]
[WhiteElo "2248"]
[BlackElo "2203"]
[Result "0-1"]
[Round "05"]
[TimeControl "180+1"]
[Date "2021.08.31"]
[WhiteClock "0:00:03"]
[BlackClock "0:01:08"]

1. c4 {[%clk 0:02:59]}  Nf6 {[%clk 0:02:57]} 2. Nc3 {[%clk 0:02:58]}  e6 {[%clk 0:02:56]} 3. e4 {[%clk 0:02:58]}  e5 {[%clk 0:02:56]} 4. g3 {[%clk 0:02:56]}  Nc6 {[%clk 0:02:55]} 5. Bg2 {[%clk 0:02:55]}  Bc5 {[%clk 0:02:56]} 6. Nge2 {[%clk 0:02:54]}  a6 {[%clk 0:02:56]} 7. O-O {[%clk 0:02:53]}  d6 {[%clk 0:02:57]} 8. h3 {[%clk 0:02:53]}  h5 {[%clk 0:02:57]} 9. d3 {[%clk 0:02:50]}  h4 {[%clk 0:02:53]} 10. g4 {[%clk 0:02:51]}  Nxg4 {[%clk 0:02:44]} 11. hxg4 {[%clk 0:02:50]}  Bxg4 {[%clk 0:02:45]} 12. Kh2 {[%clk 0:02:44]}  h3 {[%clk 0:02:41]} 13. Bh1 {[%clk 0:02:44]}  Qd7 {[%clk 0:02:38]} 14. f3 {[%clk 0:02:40]}  Be6 {[%clk 0:02:38]} 15. Nd5 {[%clk 0:02:35]}  O-O-O {[%clk 0:02:37]} 16. a3 {[%clk 0:02:14]}  f5 {[%clk 0:02:35]} 17. b4 {[%clk 0:02:13]}  Bd4 {[%clk 0:02:28]} 18. Rb1 {[%clk 0:01:59]}  b5 {[%clk 0:01:34]} 19. cxb5 {[%clk 0:01:56]}  axb5 {[%clk 0:01:35]} 20. a4 {[%clk 0:01:56]}  fxe4 {[%clk 0:01:28]} 21. dxe4 {[%clk 0:01:38]}  Ba7 {[%clk 0:01:21]} 22. axb5 {[%clk 0:01:35]}  Nd4 {[%clk 0:01:21]} 23. b6 {[%clk 0:01:32]}  cxb6 {[%clk 0:01:20]} 24. Nxd4 {[%clk 0:01:30]}  exd4 {[%clk 0:01:21]} 25. Qxd4 {[%clk 0:01:27]}  b5 {[%clk 0:01:21]} 26. Nb6+ {[%clk 0:01:13]}  Kb7 {[%clk 0:01:18]} 27. Be3 {[%clk 0:01:03]}  Qc7 {[%clk 0:01:18]} 28. Rfc1 {[%clk 0:01:00]}  Bc4 {[%clk 0:01:18]} 29. f4 {[%clk 0:00:28]}  Bxb6 {[%clk 0:01:18]} 30. e5+ {[%clk 0:00:28]}  d5 {[%clk 0:01:18]} 31. Qxb6+ {[%clk 0:00:26]}  Qxb6 {[%clk 0:01:19]} 32. Bxb6 {[%clk 0:00:25]}  Kxb6 {[%clk 0:01:20]} 33. Rg1 {[%clk 0:00:25]}  Rh7 {[%clk 0:01:15]} 34. Rg3 {[%clk 0:00:22]}  Ra8 {[%clk 0:01:14]} 35. Bf3 {[%clk 0:00:17]}  Ra2+ {[%clk 0:01:13]} 36. Kh1 {[%clk 0:00:17]}  h2 {[%clk 0:01:13]} 37. Rg2 {[%clk 0:00:16]}  Ra3 {[%clk 0:01:11]} 38. Bg4 {[%clk 0:00:15]}  Bd3 {[%clk 0:01:11]} 39. Rd1 {[%clk 0:00:10]}  Be4 {[%clk 0:01:11]} 40. Be2 {[%clk 0:00:07]}  Bxg2+ {[%clk 0:01:06]} 41. Kxg2 {[%clk 0:00:07]}  Ra2 {[%clk 0:01:07]} 42. Kf3 {[%clk 0:00:04]}  h1=Q+ {[%clk 0:01:07]} 43. Rxh1 {[%clk 0:00:03]}  Rxh1 {[%clk 0:01:08]} 44. Kg2 {[%clk 0:00:03]}  Re1 {[%clk 0:01:08]} 0-1


[Site "https://www.chess.com"]